bitfinex-derivatives/quotes_ETHF0:USTF0_20210402
["timestamp","ask_amount","ask_price","bid_price","bid_amount"]
[1617355473695,2.90695,1990.3,1990.2,2.90695]
[1617355473895,3.90225,1990.3,1990.2,2.90695]
[1617355475496,0.9953,1990.3,1990.2,2.90695]
[1617355475698,2.90695,1990.5,1990.2,2.90695]
[1617355475898,1.9994,1991.0,1990.2,2.90695]
[1617355476297,0.995,1991.0,1990.2,2.90695]
[1617355477700,0.995,1991.0,1990.8,2.90695]
[1617355478500,0.995,1991.0,1989.9,1.9892]
[1617355478701,0.995,1991.0,1989.7,72.6384]
[1617355479803,0.995,1991.0,1990.3,2.90695]
[1617355481603,0.995,1991.0,1990.3,4.86805]
[1617355481804,0.995,1991.0,1990.7,2.90695]
[1617355482705,0.995,1991.0,1989.7,72.6384]
[1617355483107,2.2964,1991.0,1989.7,72.6384]
[1617355483308,1.292,1991.0,1989.7,72.6384]
[1617355483710,1.292,1991.0,1990.3,2.90695]
[1617355484510,3.5772,1991.6,1990.4,70.8312]
[1617355485012,5.5772,1991.6,1990.4,70.8312]
[1617355485810,7.5759,1991.6,1990.9,2.90695]
[1617355486110,7.5759,1991.6,1990.4,70.8312]
[1617355487010,37.5759,1991.6,1990.4,70.8312]
[1617355487712,37.5759,1991.6,1990.9,2.90695]
[1617355488212,38.8053,1991.6,1989.5,30.0]
[1617355488412,82.6774,1991.1,1989.5,105.6881]
[1617355488613,84.3607,1991.1,1989.5,105.6881]
[1617355489112,84.3607,1991.1,1989.6,2.0]
[1617355489812,84.3607,1991.1,1990.5,2.90695]
[1617355490113,1.6833,1991.1,1990.5,2.90695]
[1617355490315,0.6789,1991.1,1990.5,2.90695]
[1617355490914,112.5533,1991.5,1990.5,2.90695]
[1617355492115,2.90695,1990.6,1990.5,2.90695]
[1617355493216,3.91035,1990.6,1990.5,2.90695]
[1617355493415,2.90695,1990.6,1990.5,2.90695]
[1617355493615,112.5533,1991.5,1990.5,2.90695]
[1617355493815,112.5533,1991.5,1990.5,4.83835]
[1617355494015,82.5533,1991.5,1991.1,2.90695]
[1617355494215,82.5533,1991.5,1991.1,4.58265]
[1617355496019,2.90695,1991.2,1991.1,4.58265]
[1617355497320,1.90255,1991.2,1991.1,4.58265]
[1617355497521,1.90255,1991.2,1991.1,2.90695]
[1617355499726,1.90255,1991.2,1990.3,62.7468]
[1617355500226,112.5533,1991.5,1990.6,2.90695]
[1617355501628,82.5533,1991.5,1990.6,2.90695]
[1617355502226,82.5533,1991.5,1991.2,2.90695]
[1617355504126,2.90695,1991.3,1991.2,2.90695]
[1617355504326,1.90255,1991.3,1991.2,2.90695]
[1617355511339,82.5533,1991.5,1991.2,2.90695]
[1617355512239,82.5533,1991.5,1991.4,2.90695]
[1617355514242,4.90565,1991.6,1991.4,2.90695]
[1617355514443,2.90695,1991.6,1991.4,2.90695]
[1617355515844,2.90695,1991.6,1991.4,4.69745]
[1617355518445,1.90255,1991.6,1991.4,4.69745]
[1617355520263,0.9974,1991.9,1991.4,4.69745]
[1617355520448,3.90435,1991.9,1991.4,4.69745]
[1617355521547,0.9974,1991.9,1991.4,4.69745]
[1617355522354,0.9974,1991.9,1991.8,2.90695]
[1617355522551,0.9974,1991.9,1991.8,4.81405]
[1617355526654,63.0341,1992.0,1991.8,4.81405]
[1617355527654,64.0292,1992.0,1991.8,4.81405]
[1617355528154,0.9951,1992.0,1991.8,4.81405]
[1617355532660,0.9951,1992.0,1991.8,2.90695]
[1617355532875,58.1489,1992.0,1991.8,2.90695]
[1617355534261,0.6993143,1991.9,1991.0,80.3459]
[1617355534663,2.57729429,1991.8,1991.5,2.90695]
[1617355534861,0.69916677,1991.7,1991.5,2.90695]
[1617355535261,1.58675276,1991.7,1991.5,2.90695]
[1617355536563,2.90695,1991.6,1991.5,2.90695]
[1617355536762,3.91645,1991.6,1991.5,2.90695]
[1617355537963,5.91645,1991.6,1991.5,2.90695]
[1617355538365,4.61500731,1991.6,1991.5,2.90695]
[1617355538569,58.9591,1991.5,1990.8,2.90695]
[1617355538766,34.61500731,1991.6,1989.2,32.0]
[1617355538767,30.0,1991.4,1989.2,32.0]
[1617355539167,82.6899,1990.7,1989.2,32.0]
[1617355539366,85.4374,1990.7,1989.2,32.0]
[1617355539766,84.4215,1990.7,1989.2,32.0]
[1617355540566,84.4215,1990.7,1990.6,2.90695]
[1617355540765,82.6899,1990.7,1990.6,2.90695]
[1617355540966,1.0195,1990.8,1990.6,2.90695]
[1617355541165,66.91235,1991.0,1990.6,2.90695]
[1617355541967,2.90695,1991.0,1990.6,2.90695]
[1617355542169,3.90105,1991.0,1990.6,2.90695]
[1617355542370,0.9941,1991.0,1990.6,70.31595]
[1617355542569,0.9941,1991.0,1990.9,2.90695]
[1617355546869,0.46581094,1991.2,1990.9,2.90695]
[1617355548674,0.46581094,1991.2,1991.1,2.90695]
[1617355548873,0.46581094,1991.2,1991.1,1.39095]
[1617355549075,0.69846149,1991.3,1991.1,1.39095]
[1617355550374,82.0347,1991.2,1991.1,1.39095]
[1617355550575,82.50045448,1991.2,1991.1,1.39095]
[1617355551575,0.46575448,1991.2,1991.1,1.39095]
[1617355553979,2.90695,1991.3,1991.1,1.39095]
[1617355553980,3.60607225,1991.3,1991.1,1.39095]
[1617355559583,0.69948669,1991.2,1991.1,1.39095]
[1617355561992,3.83968075,1991.3,1991.1,1.39095]
[1617355564094,70.9837,1990.7,1990.1,83.104]
[1617355564293,73.5019,1990.7,1990.1,83.104]
[1617355564694,72.5043,1990.7,1990.1,83.104]
[1617355564895,75.41125,1990.7,1990.6,2.90695]
[1617355565096,4.42755,1990.7,1990.6,2.90695]
[1617355566095,4.89394398,1990.7,1990.6,2.90695]
[1617355566295,4.42755,1990.7,1990.6,2.90695]
[1617355566697,4.89401559,1990.7,1990.6,2.90695]
[1617355568405,4.42755,1990.7,1990.6,2.90695]
[1617355569502,3.42475,1990.7,1990.6,2.90695]
[1617355570805,4.12483864,1990.7,1990.6,2.90695]
[1617355571005,4.12483864,1990.7,1990.0,2.90695]
[1617355571306,32.0,1990.6,1990.0,2.90695]
[1617355571507,0.05831019,1990.1,1990.0,2.90695]
[1617355571707,2.53201019,1990.1,1990.0,2.90695]
[1617355571906,2.4737,1990.1,1990.0,2.90695]
[1617355572307,2.4737,1990.1,1988.5,2.0]
[1617355572507,2.93991135,1990.1,1988.5,2.0]
[1617355572706,65.3394,1988.9,1988.5,2.0]
[1617355572907,67.0446,1988.9,1988.5,2.0]
[1617355573109,67.0446,1988.9,1988.8,2.90695]
[1617355574409,65.3394,1988.9,1988.8,2.90695]
[1617355575910,65.3394,1988.9,1988.8,4.90695]
[1617355576613,64.3366,1988.9,1988.8,4.90695]
[1617355576812,64.3366,1988.9,1988.8,2.90695]
[1617355577213,64.3366,1988.9,1988.8,4.90695]
[1617355578117,64.3366,1988.9,1988.8,2.90695]
[1617355579115,64.3366,1988.9,1988.8,4.90695]
[1617355580017,64.3366,1988.9,1988.8,2.90695]
[1617355580417,64.3366,1988.9,1988.8,4.90695]
[1617355581618,64.3366,1988.9,1988.8,2.90695]
[1617355583520,63.3338,1988.9,1988.8,2.90695]
[1617355586324,1.2838,1988.9,1988.8,2.90695]
[1617355590228,1.003,1989.1,1988.8,2.90695]
[1617355590629,0.7872,1989.1,1988.8,2.90695]
[1617355591331,0.7872,1989.1,1989.0,2.90695]
[1617355592031,70.5715,1989.3,1989.0,2.90695]
[1617355593432,70.5715,1989.3,1989.2,2.90695]
[1617355596635,69.5687,1989.3,1989.2,2.90695]
[1617355602945,2.90695,1989.5,1989.2,2.90695]
[1617355603158,2.90695,1989.5,1989.2,2.80645]
[1617355603546,1.90415,1989.5,1989.4,2.90695]
[1617355603762,1.90415,1989.5,1989.4,4.14205]
[1617355604358,80.0767,1990.0,1989.4,4.14205]
[1617355604946,80.13490927,1990.0,1989.4,4.14205]
[1617355605447,80.13490927,1990.0,1989.9,2.90695]
[1617355606048,80.0767,1990.0,1989.9,2.90695]
[1617355606448,80.1349063,1990.0,1989.9,2.90695]
[1617355607049,80.0767,1990.0,1989.9,2.90695]
[1617355607449,82.98365,1990.0,1989.9,2.90695]
[1617355610451,80.0767,1990.0,1989.9,2.90695]
[1617355610651,79.0739,1990.0,1989.9,2.90695]
[1617355616369,79.0739,1990.0,1989.9,4.13815]
[1617355616788,0.05824107,1990.3,1989.9,4.13815]
[1617355617060,0.058258,1990.4,1989.9,4.13815]
[1617355617462,0.05828408,1990.6,1989.9,4.13815]
[1617355617662,0.35850447,1990.8,1990.3,4.34785]
[1617355617861,68.19341573,1990.9,1990.3,4.34785]
[1617355618261,0.29136724,1990.7,1990.3,4.34785]
[1617355618461,0.29138851,1990.8,1990.3,4.34785]
[1617355619160,0.29157792,1990.7,1990.3,4.34785]
[1617355619561,0.29157792,1990.7,1990.6,2.90695]
[1617355619960,0.29159606,1990.8,1990.6,2.90695]
[1617355622061,69.3756037,1990.9,1990.6,2.90695]
[1617355622062,0.70127975,1990.7,1990.6,2.90695]
[1617355623563,3.60822975,1990.7,1990.6,2.90695]
[1617355623863,78.5494,1989.4,1988.7,109.5208]
[1617355624663,77.5466,1989.4,1988.7,109.5208]
[1617355625668,77.5466,1989.4,1989.3,2.90695]
[1617355626280,0.29226788,1990.3,1989.3,2.90695]
[1617355626466,0.29226788,1990.3,1989.3,4.90695]
[1617355627467,82.76088264,1990.4,1989.3,4.90695]
[1617355627666,82.76088264,1990.4,1990.3,2.90695]
[1617355628469,82.93629132,1990.4,1990.3,2.90695]
[1617355629266,82.7608918,1990.4,1990.3,2.90695]
[1617355631669,81.7580918,1990.4,1990.3,2.90695]
[1617355632669,82.7686918,1990.4,1990.3,2.90695]
[1617355633269,82.47635,1990.4,1990.3,2.90695]
[1617355633470,83.17796386,1990.4,1990.3,2.90695]
[1617355633772,82.16736386,1990.4,1990.3,2.90695]
[1617355634571,81.46575,1990.4,1990.3,2.90695]
[1617355635472,82.16715245,1990.4,1990.3,2.90695]
[1617355637277,82.16715245,1990.4,1990.3,2.49795]
[1617355637676,81.46575,1990.4,1990.3,2.49795]
[1617355638579,80.67795,1990.4,1990.3,2.49795]
[1617355638787,81.37966904,1990.4,1990.3,2.49795]
[1617355639180,80.67795,1990.4,1990.3,2.49795]
[1617355639380,81.3797103,1990.4,1990.3,2.49795]
[1617355639577,81.3797103,1990.4,1990.3,3.97385]
[1617355642380,81.3797103,1990.4,1990.3,2.49795]
[1617355643182,80.67795,1990.4,1990.3,2.49795]
[1617355646385,81.84963631,1990.4,1990.3,2.49795]
[1617355646985,83.84183631,1990.4,1990.3,2.49795]
[1617355647187,82.67015,1990.4,1990.3,2.49795]
[1617355647585,83.84213761,1990.4,1990.3,2.49795]
[1617355647785,82.67015,1990.4,1990.3,2.49795]
[1617355648986,81.66885,1990.4,1990.3,2.49795]
[1617355649892,82.60671205,1990.4,1990.3,2.49795]
[1617355650086,83.61791205,1990.4,1990.3,2.49795]
[1617355654090,81.61581205,1990.4,1990.3,2.49795]
[1617355656291,82.61861205,1990.4,1990.3,2.49795]
[1617355657692,3.05701205,1990.4,1990.3,2.49795]
[1617355659698,2.05421205,1990.4,1990.3,2.49795]
[1617355660999,1.11635,1990.4,1990.3,2.49795]
[1617355661800,2.12665,1990.4,1990.3,2.49795]
[1617355664805,3.06439565,1990.4,1990.3,2.49795]
[1617355665104,2.12665,1990.4,1990.3,2.49795]
[1617355665906,2.12665,1990.4,1990.3,2.40495]
[1617355666111,2.12665,1990.4,1990.3,2.28795]
[1617355667108,77.6694,1990.3,1988.9,80.3738]
[1617355667517,1.53529124,1989.3,1987.2,2.571]
[1617355667707,77.6882,1988.8,1987.5,81.411]
[1617355667911,79.4582,1988.8,1988.7,2.90695]
[1617355668910,1.77,1988.8,1988.7,2.90695]
[1617355669108,0.02928,1989.1,1988.7,2.90695]
[1617355669310,0.02928728,1989.2,1988.7,2.90695]
[1617355669810,0.02928728,1989.2,1989.1,2.90695]
[1617355670009,1.04368728,1989.2,1989.1,2.90695]
[1617355670810,0.02928728,1989.2,1989.1,2.90695]
[1617355675817,0.0292866,1989.3,1989.1,2.90695]
[1617355676617,0.0292866,1989.3,1989.2,70.0706]
[1617355676817,0.0292866,1989.3,1989.2,71.6407]
[1617355677020,0.0292951,1989.4,1989.2,71.6407]
[1617355677420,0.02930637,1989.6,1989.2,71.6407]
[1617355677823,0.02930637,1989.6,1989.5,2.90695]
[1617355678422,0.0293112,1989.7,1989.5,2.90695]
[1617355678622,0.0293112,1989.7,1989.5,4.90695]
[1617355680723,0.02930654,1989.6,1989.5,4.90695]
[1617355680922,0.02930899,1989.7,1989.5,4.90695]
[1617355684026,0.02931819,1989.8,1989.5,4.90695]
[1617355686024,0.02931819,1989.8,1989.7,2.90695]
[1617355686326,0.02931819,1989.8,1989.7,4.21385]
[1617355686625,0.2931819,1990.1,1989.7,4.21385]
[1617355686825,0.70397758,1990.3,1989.7,4.21385]
[1617355687326,0.93863678,1990.5,1989.7,4.21385]
[1617355687627,71.56872173,1990.6,1989.7,4.21385]
[1617355688028,0.93882173,1990.6,1990.5,2.01892856]
[1617355688727,2.12284572,1990.6,1990.5,2.01892856]
[1617355689828,1.18402399,1990.6,1990.5,2.01892856]
[1617355690228,2.12268678,1990.6,1990.5,2.01892856]
[1617355691229,1.18402399,1990.6,1990.5,2.01892856]
[1617355691929,5.02963185,1990.6,1990.5,2.01892856]
[1617355693538,2.12268185,1990.6,1990.5,2.01892856]
[1617355693734,1.11898185,1990.6,1990.5,2.01892856]
[1617355695638,72.54247042,1990.7,1990.5,2.01892856]
[1617355696238,0.93968217,1990.6,1990.5,2.01892856]
[1617355697339,72.54258695,1990.7,1990.5,2.01892856]
[1617355697740,72.77840533,1990.7,1990.5,2.01892856]
[1617355698141,2.90695,1990.6,1990.5,2.01892856]
[1617355699142,4.08205844,1990.6,1990.5,1.51112856]
[1617355700743,3.07835844,1990.6,1990.5,1.51112856]
[1617355703848,1.90325,1990.6,1990.5,1.51112856]
[1617355705047,3.07806201,1990.6,1990.5,1.51112856]
[1617355706056,4.2622156,1990.6,1990.5,1.51112856]
[1617355706449,3.08740359,1990.6,1990.5,1.51112856]
[1617355707647,2.08370359,1990.6,1990.5,1.51112856]
[1617355709648,3.38860359,1990.6,1989.0,75.8342]
[1617355709848,80.762,1990.5,1989.0,75.8342]
[1617355710051,80.762,1990.5,1990.1,2.90695]
[1617355710250,0.93940826,1990.3,1990.1,2.90695]
[1617355710451,0.93950962,1990.2,1990.1,2.90695]
[1617355712251,5.74635962,1990.2,1989.0,73.8342]
[1617355712451,4.80685,1990.2,1989.0,73.8342]
[1617355712855,0.93981964,1990.0,1989.0,73.8342]
[1617355713857,0.93990236,1990.1,1989.0,73.8342]
[1617355714257,0.93990236,1990.1,1990.0,2.90695]
[1617355714757,58.822,1990.1,1990.0,2.90695]
[1617355715058,60.00627203,1990.1,1990.0,2.90695]
[1617355721768,59.00257203,1990.1,1990.0,2.90695]
[1617355724269,1.18427203,1990.1,1990.0,2.90695]
[1617355724869,1.1743399,1990.1,1990.0,2.90695]
[1617355727376,5.9171397,1990.2,1990.0,2.90695]
[1617355728378,4.74305236,1990.2,1990.0,2.90695]
[1617355728776,5.80170859,1990.2,1990.0,2.90695]
[1617355729175,4.62763119,1990.2,1990.0,2.90695]
[1617355729580,5.80169485,1990.2,1990.0,2.90695]
[1617355729976,35.80169485,1990.2,1990.0,2.90695]
[1617355730177,1.18434349,1990.1,1990.0,2.90695]
[1617355730379,1.18434349,1990.1,1990.0,1.32945]
[1617355730981,2.35796632,1990.1,1990.0,1.32945]
[1617355731584,1.18434349,1990.1,1990.0,1.32945]
[1617355731784,31.18434349,1990.1,1990.0,1.32945]
[1617355732385,31.18434349,1990.1,1989.8,2.90695]
[1617355732386,68.8857,1990.0,1989.8,2.90695]
[1617355732585,71.24356785,1990.0,1989.8,2.90695]
[1617355732985,1.18444497,1989.9,1989.8,2.90695]
[1617355733485,1.18444497,1989.9,1989.8,2.73495]
[1617355734391,4.09139497,1989.9,1989.8,2.73495]
[1617355735393,2.90695,1989.9,1989.8,2.73495]
[1617355735697,1.90325,1989.9,1989.8,2.73495]
[1617355736894,3.087674,1989.9,1989.8,2.73495]
[1617355740796,1.90325,1989.9,1989.8,2.73495]
[1617355742797,0.89955,1989.9,1989.8,2.73495]
[1617355745403,1.83822005,1989.9,1989.8,2.73495]
[1617355748005,0.89955,1989.9,1989.8,2.73495]
[1617355749711,0.8340356,1990.0,1989.8,2.73495]
[1617355749910,2.72973201,1990.2,1989.8,2.73495]
[1617355750512,1.17273201,1990.2,1990.0,2.90695]
[1617355752414,2.90695,1990.1,1990.0,2.90695]
[1617355758722,1.17273201,1990.2,1990.0,4.72775]
[1617355759124,1.0171,1990.3,1990.0,4.72775]
[1617355759323,1.17254281,1990.4,1990.0,4.72775]
[1617355759524,0.70381248,1990.2,1990.0,4.72775]
[1617355759723,1.59231754,1990.3,1990.0,4.72775]
[1617355760324,0.70421072,1990.2,1990.0,4.72775]
[1617355761325,82.3240264,1990.1,1990.0,4.72775]
[1617355761826,82.20810156,1990.1,1990.0,4.72775]
[1617355763528,80.6159,1990.1,1990.0,4.72775]
[1617355763730,81.31997657,1990.1,1990.0,4.72775]
[1617355765632,0.70392864,1990.2,1990.0,4.72775]
[1617355765829,0.70392864,1990.2,1990.1,69.4651]
[1617355766529,0.70392864,1990.2,1990.0,4.72775]
[1617355767529,1.5920214,1990.2,1990.0,4.72775]
[1617355768833,0.5879214,1990.2,1990.0,2.90695]
[1617355769032,71.3221,1990.3,1990.0,2.90695]
[1617355769835,72.3362,1990.3,1990.0,2.90695]
[1617355770635,72.3362,1990.3,1990.2,0.83464948]
[1617355773437,71.3221,1990.3,1990.2,0.83464948]
[1617355775838,70.318,1990.3,1990.2,0.83464948]
[1617355778739,1.0081,1990.4,1990.2,0.83464948]
[1617355778939,1.17548698,1990.5,1990.2,0.83464948]
[1617355779839,4.08261258,1990.6,1990.2,0.83464948]
[1617355780242,0.94060996,1990.4,1990.2,0.83464948]
[1617355782142,0.94067773,1990.3,1990.2,0.83464948]
[1617355782744,3.83752773,1990.4,1990.2,0.83464948]
[1617355783342,2.84352773,1990.4,1990.2,0.83464948]
[1617355783942,60.5664,1990.4,1990.2,0.83464948]
[1617355785645,61.74310545,1990.4,1990.2,0.83464948]
[1617355787750,1.17632987,1990.3,1990.2,0.83464948]
[1617355789853,0.17222987,1990.3,1990.2,0.83464948]
[1617355791255,60.5664,1990.4,1990.2,0.83464948]
[1617355791855,61.5573,1990.4,1990.2,0.83464948]
[1617355795766,60.5664,1990.4,1990.2,0.83464948]
[1617355796865,61.5628,1990.4,1990.2,0.83464948]
[1617355798766,63.6252991,1990.4,1990.2,0.83464948]
[1617355799067,61.5628,1990.4,1990.2,0.83464948]
[1617355800066,60.5664,1990.4,1990.2,0.83464948]
[1617355800867,2.06258562,1990.5,1990.2,0.83464948]
[1617355801068,2.06258562,1990.5,1990.4,2.90695]
[1617355801269,2.06338734,1990.7,1990.4,2.90695]
[1617355802069,2.06412145,1990.8,1990.4,2.90695]
[1617355802269,2.06432192,1990.9,1990.4,2.90695]
[1617355802669,2.06494301,1991.0,1990.4,2.90695]
[1617355803071,2.06494301,1991.0,1990.9,2.90695]
[1617355803473,3.05974301,1991.0,1990.9,2.90695]
[1617355803873,2.05564301,1991.0,1990.9,2.90695]
[1617355804076,0.9948,1991.0,1990.9,2.90695]
[1617355805278,0.9948,1991.0,1990.9,2.65815]
[1617355805778,7.12860174,1991.2,1990.9,2.65815]
[1617355807181,7.12860174,1991.2,1991.1,2.90695]
[1617355807579,7.12860174,1991.2,1991.1,4.49425]
[1617355807780,2.90695,1991.2,1991.1,4.49425]
[1617355810887,1.90285,1991.2,1991.1,4.49425]
[1617355812286,1.90285,1991.2,1991.1,2.90695]
[1617355812486,3.60545,1991.2,1990.0,68.1268]
[1617355812687,65.3626,1990.7,1990.0,68.1268]
[1617355812888,66.3673,1990.7,1990.0,68.1268]
[1617355813089,0.4715881,1990.3,1990.0,68.1268]
[1617355813288,0.4715881,1990.3,1990.2,2.90695]
[1617355816296,66.30577621,1990.7,1990.2,2.90695]
[1617355816297,0.94311903,1990.6,1990.2,2.90695]
[1617355816696,65.3626,1990.7,1990.2,2.90695]
[1617355816697,0.94302651,1990.5,1990.2,2.90695]
[1617355817097,0.94311782,1990.6,1990.2,2.90695]
[1617355817297,0.94311782,1990.6,1990.5,2.90695]
[1617355817898,65.3626,1990.7,1990.5,2.90695]
[1617355817899,65.30161782,1990.7,1990.5,2.90695]
[1617355824903,64.29751782,1990.7,1990.5,2.90695]
[1617355833010,4.08404712,1990.8,1990.5,2.90695]
[1617355833410,0.88794438,1990.7,1990.4,58.2767]
[1617355834110,0.7061295,1990.5,1990.4,58.2767]
[1617355834710,0.7061295,1990.5,1990.2,1.7573]
[1617355834911,0.7061295,1990.5,1989.9,2.0]
[1617355835111,69.6710295,1990.5,1989.9,2.0]
[1617355835510,69.6710295,1990.5,1990.4,2.90695]
[1617355836212,69.6710295,1990.5,1990.4,4.67255]
[1617355836412,68.9649,1990.5,1990.4,4.67255]
[1617355837113,69.67117566,1990.5,1990.4,4.67255]
[1617355837814,68.9649,1990.5,1990.4,4.67255]
[1617355838013,68.9649,1990.5,1990.4,2.90695]
[1617355840417,1.1762823,1990.7,1990.4,2.90695]
[1617355840618,1.17604239,1990.6,1990.4,2.90695]
[1617355840820,1.17590897,1990.5,1990.4,2.90695]
[1617355841017,3.18130897,1990.5,1990.4,2.90695]
[1617355841618,4.06935529,1990.5,1990.4,2.90695]
[1617355844422,2.89344632,1990.5,1990.4,2.90695]
[1617355845228,4.06921997,1990.5,1990.4,2.90695]
[1617355847425,2.06381997,1990.5,1990.4,2.90695]
[1617355847625,3.24785735,1990.5,1990.4,2.90695]
[1617355851039,5.06375735,1990.5,1990.4,2.90695]
[1617355851433,3.8879837,1990.5,1990.4,2.90695]
[1617355852236,5.06439364,1990.5,1990.4,2.90695]
[1617355852629,3.24849364,1990.5,1990.4,2.90695]
[1617355858843,2.0720837,1990.5,1990.4,2.90695]
[1617355859647,3.24821047,1990.5,1990.4,2.90695]
[1617355860347,2.0720837,1990.5,1990.4,2.90695]
[1617355860746,3.24836677,1990.5,1990.4,2.90695]
[1617355865359,0.88804632,1990.5,1990.4,2.90695]
[1617355865760,2.94878938,1990.5,1990.4,2.90695]
[1617355866160,0.88804632,1990.5,1989.1,65.6022]
[1617355866560,67.0286,1989.3,1989.1,65.6022]
[1617355866761,68.4584,1989.3,1989.1,65.6022]
[1617355866961,0.05876412,1989.2,1989.1,65.6022]
[1617355867362,68.75220837,1989.3,1989.1,65.6022]
[1617355867961,68.75220837,1989.3,1989.2,2.90695]
[1617355868863,68.92838118,1989.3,1989.2,2.90695]
[1617355874174,68.75158593,1989.3,1989.2,2.90695]
[1617355874373,67.32178593,1989.3,1989.2,2.90695]
[1617355874574,67.0286,1989.3,1989.2,2.90695]
[1617355875175,0.29321367,1989.4,1989.2,2.90695]
[1617355875973,0.29318794,1989.3,1989.2,2.90695]
[1617355876173,1.76828794,1989.3,1989.2,2.90695]
[1617355878274,4.67523794,1989.3,1989.2,2.90695]
[1617355878876,4.8510248,1989.3,1989.2,2.90695]
[1617355879077,4.38205,1989.3,1989.2,2.90695]
[1617355882677,74.89225,1989.3,1989.2,2.90695]
[1617355882879,75.36110325,1989.3,1989.2,2.90695]
[1617355883278,75.18532303,1989.3,1989.2,2.90695]
[1617355884281,72.27837303,1989.3,1989.2,2.90695]
[1617355884478,72.27837303,1989.3,1989.2,2.89075]
[1617355884881,71.9853,1989.3,1989.2,2.89075]
[1617355885280,72.04386879,1989.3,1989.2,2.89075]
[1617355886081,71.9853,1989.3,1989.2,2.89075]
[1617355891591,72.0438825,1989.3,1989.2,2.89075]
[1617355892497,71.9853,1989.3,1989.2,2.89075]
[1617355892798,72.27808775,1989.3,1989.2,2.89075]
[1617355893398,71.9853,1989.3,1989.2,2.89075]
[1617355893799,72.2780657,1989.3,1989.2,2.89075]
[1617355894200,71.9853,1989.3,1989.2,2.89075]
[1617355896502,72.27791045,1989.3,1989.2,2.89075]
[1617355896903,72.04377102,1989.3,1989.2,2.89075]
[1617355897703,71.9853,1989.3,1989.2,2.89075]
[1617355898104,72.04377529,1989.3,1989.2,2.89075]
[1617355904415,74.95072529,1989.3,1989.2,2.89075]
[1617355905415,74.95072529,1989.3,1989.2,1.06335]
[1617355907218,74.89225,1989.3,1989.2,1.06335]
[1617355907619,74.95073496,1989.3,1989.2,1.06335]
[1617355908721,74.89225,1989.3,1989.2,1.06335]
[1617355909420,74.95074437,1989.3,1989.2,1.06335]
[1617355909821,74.89225,1989.3,1989.2,1.06335]
[1617355910521,74.95069271,1989.3,1989.2,1.06335]
[1617355912826,72.04374271,1989.3,1989.2,1.06335]
[1617355913025,71.9853,1989.3,1989.2,1.06335]
[1617355916726,0.05843035,1989.4,1989.2,1.06335]
[1617355916926,0.05843035,1989.4,1989.2,77.04475]
[1617355917327,0.01463107,1989.3,1989.2,77.04475]
[1617355917727,0.0146346,1989.4,1989.2,77.04475]
[1617355918127,0.05853841,1989.6,1989.2,77.04475]
[1617355918128,1.0007,1989.8,1989.2,77.04475]
[1617355918327,0.53363138,1990.2,1989.2,77.04475]
[1617355918527,0.53363138,1990.2,1990.0,2.90695]
[1617355918727,1.54273138,1990.2,1990.0,4.52445]
[1617355919830,1.0091,1990.2,1990.0,4.52445]
[1617355920531,2.90695,1990.1,1990.0,4.52445]
[1617355920932,2.90695,1990.1,1990.0,4.50445]
[1617355922730,2.90695,1990.1,1990.0,2.88695]
[1617355925033,2.79152595,1990.1,1990.0,2.88695]
[1617355925634,2.79152595,1990.1,1990.0,2.86695]
[1617355926038,2.79152595,1990.1,1990.0,4.25245]
[1617355927141,2.79152595,1990.1,1990.0,3.00545]
[1617355930846,1.0091,1990.2,1990.0,3.00545]
[1617355931046,0.93813562,1990.4,1990.0,3.00545]
[1617355931446,0.93870062,1990.6,1990.0,3.00545]
[1617355932046,2.29260921,1990.8,1990.0,3.00545]
[1617355932647,2.29260921,1990.8,1990.5,4.59365]
[1617355933147,1.11923344,1990.8,1990.5,4.59365]
[1617355934649,2.90695,1990.6,1990.5,4.59365]
[1617355938155,2.90695,1990.6,1990.5,3.09795]
[1617355939155,1.90335,1990.6,1990.5,3.09795]
[1617355940157,1.1730071,1991.2,1990.5,3.09795]
[1617355940557,1.17400042,1991.4,1990.8,74.3473]
[1617355940759,2.90695,1991.4,1991.2,4.68375]
[1617355941458,3.90745,1991.4,1991.2,4.68375]
[1617355941657,2.90695,1991.4,1991.2,4.68375]
[1617355943259,2.17112694,1991.8,1991.2,4.68375]
[1617355943459,2.17112694,1991.8,1991.2,4.66385]
[1617355944062,0.9959,1991.8,1991.2,4.66385]
[1617355944259,1.17575935,1991.9,1991.2,4.66385]
[1617355944461,1.17575935,1991.9,1991.3,82.3727]
[1617355944660,4.08270935,1991.9,1991.8,2.90695]
[1617355944860,2.90695,1991.9,1991.8,4.24655]
[1617355946063,1.90335,1991.9,1991.8,4.24655]
[1617355947563,1.93263535,1991.9,1991.8,4.24655]
[1617355947762,1.93263535,1991.9,1991.8,4.23655]
[1617355950477,1.93263535,1991.9,1991.8,2.89695]
[1617355951080,1.93263535,1991.9,1991.8,70.93135]
[1617355952470,1.90335,1991.9,1991.8,70.93135]
[1617355953069,0.89975,1991.9,1991.8,70.93135]
[1617355954471,0.0292983,1992.1,1991.8,70.93135]
[1617355954869,0.02929806,1992.2,1992.0,2.90695]
[1617355955069,0.02929806,1992.2,1992.0,4.69475]
[1617355958671,2.90695,1992.3,1992.0,4.69475]
[1617355958871,2.90695,1992.3,1992.2,2.90695]
[1617355960075,1.90335,1992.3,1992.2,2.90695]
[1617355962475,0.02922389,1992.7,1992.2,2.90695]
[1617355962676,3.02922205,1992.8,1992.2,2.90695]
[1617355962875,5.93617205,1992.8,1992.7,2.90695]
[1617355963076,5.90695,1992.8,1992.7,2.90695]
[1617355963477,5.9361711,1992.8,1992.7,2.90695]
[1617355963977,5.90695,1992.8,1992.7,2.90695]
[1617355967184,4.90335,1992.8,1992.7,2.90695]
[1617355969089,6.33035,1992.8,1992.7,2.90695]
[1617355969289,6.33035,1992.8,1992.0,76.4444]
[1617355969489,6.33035,1992.8,1991.2,30.0]
[1617355969689,71.6118,1992.4,1991.3,57.5969]